fUSD/lending_fUSD_20260408
["ID","MTS","AMOUNT","RATE_DAILY","PERIOD"]
[420014289,1775614250617,-1000.0,0.00015269,2]
[420014290,1775614250626,-985.91,0.00015276,2]
[420014291,1775614250636,-479.0,0.00015282,2]
[420014292,1775614250645,-327.0,0.00015285,2]
[420014293,1775614250655,-151.57385169,0.00015287,2]
[420014294,1775614250664,-500.0,0.00015295,2]
[420014295,1775614250674,-151.0,0.00015295,2]
[420014296,1775614250683,-313.14207223,0.00015301,2]
[420014297,1775614250693,-476.09,0.00015302,2]
[420014298,1775614250703,-373.77,0.00015302,2]
[420014299,1775614250713,-361.68310929,0.00015302,2]
[420014300,1775614250722,-327.0,0.00015315,2]
[420014301,1775614250732,-269.5903032,0.0001532,2]
[420014302,1775614250744,-4531.0,0.0001532,2]
[420014303,1775614250753,-611.73539494,0.00015324,2]
[420014304,1775614250763,-2000.0,0.00015342,2]
[420014305,1775614250773,-1507.57062774,0.00015342,2]
[420014306,1775614250784,-1934.59652431,0.00015342,2]
[420014307,1775614250793,-1500.0,0.00015342,2]
[420014308,1775614250803,-2000.0,0.00015342,2]
[420014309,1775614250813,-1101.58308261,0.00015342,2]
[420014310,1775614250823,-2000.0,0.00015342,2]
[420014311,1775614250833,-1324.46873039,0.00015342,2]
[420014312,1775614250843,-500.0,0.0001535,2]
[420014313,1775614250852,-151.0,0.0001535,2]
[420014314,1775614250862,-2000.0,0.00015354,2]
[420014315,1775614250872,-2000.0,0.00015354,2]
[420014316,1775614250881,-2000.0,0.00015354,2]
[420014317,1775614250891,-2000.0,0.00015354,2]
[420014318,1775614250900,-2000.0,0.00015354,2]
[420014319,1775614250910,-2000.0,0.00015354,2]
[420014320,1775614250920,-2000.0,0.00015354,2]
[420014321,1775614250930,-2000.0,0.00015354,2]
[420014322,1775614250939,-2000.0,0.00015354,2]
[420014323,1775614250949,-2000.0,0.00015354,2]
[420014324,1775614250959,-150.0,0.00015354,2]
[420014325,1775614250968,-1011.0,0.0001536,2]
[420014326,1775614250978,-479.0,0.0001536,2]
[420014327,1775614250987,-6142.99513691,0.0001536,2]
[420014328,1775614250997,-218.6076165,0.00015367,2]
[420014329,1775614251006,-150.0,0.00015376,2]
[420014330,1775614251015,-327.0,0.00015377,2]
[420014331,1775614251024,-2812.0,0.0001538,2]
[420014332,1775614251033,-188.880911,0.0001538,2]
[420014333,1775614251042,-151.0,0.0001538,2]
[420014334,1775614251052,-151.0,0.0001538,2]
[420014335,1775614251061,-151.0,0.0001538,2]
[420014336,1775614251070,-156.64985,0.0001538,2]
[420014337,1775614251079,-233.178178,0.0001538,2]
[420014338,1775614251089,-156.64985,0.0001538,2]
[420014339,1775614251098,-156.64985,0.0001538,2]
[420014340,1775614251107,-151.0,0.0001538,2]
[420014341,1775614251116,-156.64985,0.0001538,2]
[420014342,1775614251125,-201.399469,0.0001538,2]
[420014343,1775614251135,-155.4903749,0.00015384,2]
[420014344,1775614251144,-197.181981,0.00015399,7]
[420014345,1775614251153,-512.80272022,0.000154,2]
[420014346,1775614251163,-500.0,0.00015405,2]
[420014347,1775614251173,-151.0,0.00015405,2]
[420014348,1775614251183,-5888.0,0.00015415,2]
[420014349,1775614251193,-753.325652,0.00015438,2]
[420014350,1775614251203,-429.381672,0.00015438,7]
[420014351,1775614251213,-500.0,0.0001546,2]
[420014352,1775614251222,-151.0,0.0001546,2]
[420014353,1775614251232,-4099.89,0.00015471,2]
[420014354,1775614251241,-813.7,0.00015471,2]
[420014355,1775614251251,-9135.11,0.00015471,2]
[420014356,1775614251261,-936.462,0.00015492,2]
[420014357,1775614251270,-1231.99782668,0.000155,2]
[420014358,1775614251280,-1416.77434243,0.00015502,2]
[420014359,1775614251290,-245.69757263,0.00015511,2]
[420014360,1775614251300,-187.78006525,0.00015513,2]
[420014361,1775614251310,-200.0,0.00015513,2]
[420014362,1775614251319,-1280.88388878,0.00015513,2]
[420014363,1775614251329,-771.01748645,0.00015513,2]
[420014364,1775614251338,-621.78829552,0.00015513,2]
[420014365,1775614251347,-181.08010149,0.00015513,2]
[420014366,1775614251357,-290.26104003,0.00015513,2]
[420014367,1775614251367,-1000.0,0.00015515,2]
[420014368,1775614251377,-500.0,0.00015515,2]
[420014369,1775614251386,-151.0,0.00015515,2]
[420014370,1775614251396,-162.4732,0.0001554,2]
[420014371,1775614251406,-985.91,0.00015549,2]
[420014372,1775614251415,-162.4732,0.0001555,2]
[420014373,1775614251425,-162.4732,0.0001556,2]
[420014374,1775614251435,-373.77,0.00015563,2]
[420014375,1775614251445,-1229.453,0.00015567,2]
[420014376,1775614251454,-6022.0,0.00015567,2]
[420014377,1775614251464,-2471.0,0.00015567,2]
[420014378,1775614251474,-162.4732,0.0001557,2]
[420014379,1775614251483,-500.0,0.0001557,2]
[420014380,1775614251493,-151.0,0.0001557,2]
[420014381,1775614251502,-500.37703328,0.00015573,2]
[420014382,1775614251512,-286.66228585,0.00015573,2]
[420014383,1775614251522,-180.31252169,0.00015573,2]
[420014384,1775614251532,-500.0,0.00015573,2]
[420014385,1775614251541,-500.0,0.00015573,2]
[420014386,1775614251551,-500.0,0.00015573,2]
[420014387,1775614251560,-500.0,0.00015573,2]
[420014388,1775614251570,-479.0,0.0001558,2]
[420014389,1775614251580,-162.4732,0.0001558,2]
[420014390,1775614251590,-5888.0,0.00015584,2]
[420014391,1775614251600,-151.0,0.00015597,2]
[420014392,1775614251766,-500.0,0.00015599,2]
[420014393,1775614251776,-528.6,0.00015599,2]
[420014394,1775614251786,-500.0,0.00015599,2]
[420014395,1775614251796,-97981.19,0.000156,2]
[420014396,1775614251807,-10000.0,0.000156,2]
[420014397,1775614251817,-30069.4549983,0.000156,2]
[420014398,1775614251827,-11600.0,0.000156,5]
[420014399,1775614251837,-14852.32130659,0.000156,2]
[420014400,1775614251846,-4531.0,0.00015602,2]
[420014401,1775614251856,-150.0,0.0001561,2]
[420014402,1775614251866,-500.0,0.00015625,2]
[420014403,1775614251876,-151.0,0.00015625,2]
[420014404,1775614251886,-734.21337506,0.00015634,2]
[420014405,1775614251895,-250.33684328,0.00015639,2]
[420014406,1775614251906,-150.0,0.00015653,2]
[420014407,1775614251915,-1085.31637939,0.00015658,2]
[420014408,1775614251924,-1000.0,0.0001566,2]
[420014409,1775614251934,-628.24963667,0.00015673,2]
[420014410,1775614251943,-500.0,0.00015673,2]
[420014411,1775614251952,-501.16382961,0.00015673,2]
[420014412,1775614251962,-500.07749101,0.00015673,2]
[420014413,1775614251971,-500.0,0.00015673,2]
[420014414,1775614251981,-500.34438432,0.00015673,2]
[420014415,1775614251991,-500.0,0.00015673,2]
[420014416,1775614252001,-500.0,0.00015673,2]
[420014417,1775614252010,-500.66424426,0.00015673,2]
[420014418,1775614252020,-500.0,0.00015673,2]
[420014419,1775614252030,-337.939864,0.00015673,2]
[420014420,1775614252039,-500.0,0.00015673,2]
[420014421,1775614252049,-500.0,0.00015673,2]
[420014422,1775614252058,-500.0,0.00015673,2]
[420014423,1775614252067,-500.0,0.00015673,2]
[420014424,1775614252077,-500.0,0.00015673,2]
[420014425,1775614252086,-500.0,0.00015673,2]
[420014426,1775614252095,-500.0,0.00015673,2]
[420014427,1775614252104,-500.0,0.00015673,2]
[420014428,1775614252114,-500.0,0.00015673,2]
[420014429,1775614252124,-179.29,0.00015673,2]
[420014430,1775614252134,-507.0,0.00015673,4]
[420014431,1775614252144,-313.77,0.00015678,2]
[420014432,1775614252153,-500.0,0.00015679,2]
[420014433,1775614252162,-500.0,0.00015679,2]
[420014434,1775614252172,-7601.9355715,0.00015679,2]
[420014435,1775614252181,-164.0,0.0001568,2]
[420014436,1775614252191,-1573.0,0.0001568,2]
[420014437,1775614252200,-1573.0,0.0001568,2]
[420014438,1775614252211,-1677.93172235,0.0001568,2]
[420014439,1775614252221,-500.0,0.0001568,2]
[420014440,1775614252232,-151.0,0.0001568,2]
[420014441,1775614252242,-400.0,0.00015682,2]
[420014442,1775614252252,-5532.3620175,0.00015683,2]
[420014443,1775614252262,-358.73,0.00015684,2]
[420014444,1775614252272,-530.72,0.00015686,2]
[420014445,1775614252281,-400.0,0.00015686,2]
[420014446,1775614252291,-400.0,0.00015686,2]
[420014447,1775614252302,-400.0,0.00015686,2]
[420014448,1775614252311,-400.0,0.00015686,2]
[420014449,1775614252321,-400.0,0.00015686,2]
[420014450,1775614252331,-400.0,0.00015686,2]
[420014451,1775614252340,-214.99,0.00015686,2]
[420014452,1775614252350,-500.0,0.00015686,2]
[420014453,1775614252360,-500.0,0.00015686,2]
[420014454,1775614252370,-5888.0,0.00015687,2]
[420014455,1775614252379,-400.0,0.00015689,2]
[420014456,1775614252389,-227.79,0.00015689,2]
[420014457,1775614252398,-511.83900029,0.0001569,2]
[420014458,1775614252408,-400.0,0.00015691,2]
[420014459,1775614252418,-400.0,0.00015691,2]
[420014460,1775614252428,-400.0,0.00015691,2]
[420014461,1775614252437,-400.0,0.00015691,2]
[420014462,1775614252448,-400.0,0.00015691,2]
[420014463,1775614252458,-400.0,0.00015691,2]
[420014464,1775614252469,-400.0,0.00015691,2]
[420014465,1775614252479,-400.0,0.00015691,2]
[420014466,1775614252489,-400.0,0.00015691,2]
[420014467,1775614252499,-400.0,0.00015691,2]
[420014468,1775614252509,-400.0,0.00015691,2]
[420014469,1775614252519,-176.24,0.00015691,2]
[420014470,1775614252530,-400.0,0.00015693,2]
[420014471,1775614252539,-400.0,0.00015693,2]
[420014472,1775614252549,-736.0,0.00015695,2]
[420014473,1775614252559,-400.0,0.00015696,2]
[420014474,1775614252569,-400.0,0.00015696,2]
[420014475,1775614252579,-400.0,0.00015696,2]
[420014476,1775614252589,-400.0,0.00015696,2]
[420014477,1775614252599,-400.0,0.00015696,2]
[420014478,1775614252608,-400.0,0.00015696,2]
[420014479,1775614252619,-400.0,0.00015696,2]
[420014480,1775614252629,-400.0,0.00015696,2]
[420014481,1775614252639,-400.0,0.00015696,2]
[420014482,1775614252649,-400.0,0.00015696,2]
[420014483,1775614252658,-400.0,0.00015696,2]
[420014484,1775614252668,-400.0,0.00015696,2]
[420014485,1775614252678,-400.0,0.00015696,2]
[420014486,1775614252687,-400.0,0.00015696,2]
[420014487,1775614252697,-283.74,0.00015696,2]
[420014488,1775614252707,-151.0,0.00015697,2]
[420014489,1775614252718,-151.0,0.00015697,2]
[420014490,1775614252728,-151.0,0.00015697,2]
[420014491,1775614252738,-151.0,0.00015697,2]
[420014492,1775614252748,-500.0,0.00015699,2]
[420014493,1775614252758,-500.0,0.00015699,2]
[420014494,1775614252768,-500.0,0.00015699,2]
[420014495,1775614252778,-500.0,0.00015699,2]
[420014496,1775614252789,-298.91111324,0.00015699,2]
[420014497,1775614252798,-500.0,0.00015699,2]
[420014498,1775614252807,-500.0,0.00015699,2]
[420014499,1775614252817,-500.0,0.00015699,2]
[420014500,1775614252828,-500.0,0.00015699,2]
[420014501,1775614252838,-500.0,0.00015699,2]
[420014502,1775614252848,-500.0,0.00015699,2]
[420014503,1775614252858,-300.20404786,0.00015699,2]
[420014504,1775614252867,-500.0,0.00015699,2]
[420014505,1775614252877,-500.0,0.00015699,2]
[420014506,1775614252886,-500.0,0.00015699,2]
[420014507,1775614252896,-566.18228099,0.00015699,2]
[420014508,1775614252906,-500.0,0.00015699,2]
[420014509,1775614252916,-506.82132737,0.00015699,2]
[420014510,1775614252927,-500.0,0.00015699,2]
[420014511,1775614252937,-500.0,0.00015699,2]
[420014512,1775614252946,-458.97627827,0.00015699,2]
[420014513,1775614252956,-528.6,0.00015699,2]
[420014514,1775614252966,-528.6,0.00015699,2]
[420014515,1775614252975,-528.6,0.00015699,2]
[420014516,1775614252986,-528.6,0.00015699,2]
[420014517,1775614252995,-528.6,0.00015699,2]
[420014518,1775614253005,-528.6,0.00015699,2]
[420014519,1775614253014,-528.6,0.00015699,2]
[420014520,1775614253024,-528.6,0.00015699,2]
[420014521,1775614253033,-528.8126826,0.00015699,2]
[420014522,1775614253043,-500.0,0.00015699,2]
[420014523,1775614253052,-500.0,0.00015699,2]
[420014524,1775614253061,-277.04297569,0.00015699,2]
[420014525,1775614253071,-2353.0,0.000157,5]
[420014526,1775614253081,-434971.66054495,0.000157,2]
[420014527,1775614253090,-1099308.78490977,0.000157,2]
[420014528,1775614253100,-363741.97119956,0.000157,2]
[420014529,1775614253109,-1000.0,0.000157,2]
[420014530,1775614253119,-1000.0,0.000157,2]
[420014531,1775614253128,-201200.16611261,0.000157,2]
[420014532,1775614253138,-757057.52342461,0.000157,2]
[420014533,1775614253211,-299.28316896,0.00015567,2]
[420014534,1775614253365,-205.10183104,0.00015567,2]
[420014535,1775614253375,-764.96056346,0.000157,2]
[420014536,1775614253388,-19072.1818767,0.000157,2]
[420014537,1775614253400,-12871.38223621,0.000157,2]
[420014538,1775614253412,-417804.94745696,0.000157,2]
[420014539,1775614253424,-171270.33058071,0.000157,2]
[420014540,1775614253520,-500.0,0.00011799,2]
[420014541,1775614253530,-334.90166488,0.000157,2]
[420014542,1775614253543,-19593.4876573,0.000157,2]
[420014543,1775614253555,-3579.28997878,0.000157,2]
[420014544,1775614462777,171.0,6.7e-05,2]
[420014545,1775614463033,156.0,6.7e-05,2]
[420014546,1775614463281,156.0,6.7e-05,2]
[420014547,1775614463531,156.0,6.7e-05,2]
[420014548,1775614463780,156.0,6.7e-05,2]
[420014549,1775614464024,156.0,6.7e-05,2]
[420014550,1775614464337,156.0,6.7e-05,2]
[420014551,1775614464621,156.0,6.7e-05,2]
[420014552,1775614464880,156.0,6.7e-05,2]
[420014553,1775614465141,156.0,6.7e-05,2]
[420014554,1775614465420,156.0,6.7e-05,2]
[420014555,1775614465676,156.0,6.7e-05,2]
[420014556,1775614465955,156.0,6.7e-05,2]
[420014557,1775614466256,156.0,6.7e-05,2]
[420014558,1775614466514,156.0,6.7e-05,2]
[420014559,1775614466801,102.29662366,6.7e-05,2]
[420014560,1775614466824,53.70337634,6.7e-05,2]
[420014561,1775614468189,156.0,6.7e-05,2]
[420014562,1775614468218,156.0,6.7e-05,2]
[420014563,1775614468247,156.0,6.7e-05,2]
[420014564,1775614468281,156.0,6.7e-05,2]
[420014565,1775614468313,156.0,6.7e-05,2]
[420014566,1775614468385,156.0,6.7e-05,2]
[420014567,1775614468640,156.0,6.7e-05,2]
[420014568,1775614469654,168.0,6.7e-05,2]
[420014569,1775614470004,156.0,6.7e-05,2]
[420014570,1775614470267,156.0,6.7e-05,2]
[420014571,1775614470553,156.0,6.7e-05,2]
[420014572,1775614470821,156.0,6.7e-05,2]
[420014573,1775614471086,156.0,6.7e-05,2]
[420014574,1775614471361,156.0,6.7e-05,2]
[420014575,1775614471625,156.0,6.7e-05,2]
[420014576,1775614471889,156.0,6.7e-05,2]
[420014577,1775614472146,156.0,6.7e-05,2]
[420014578,1775614472424,156.0,6.7e-05,2]
[420014579,1775614472692,156.0,6.7e-05,2]
[420014580,1775614472948,156.0,6.7e-05,2]
[420014581,1775614473208,156.0,6.7e-05,2]
[420014582,1775614473471,156.0,6.7e-05,2]
[420014583,1775614473736,156.0,6.7e-05,2]
[420014584,1775614473997,156.0,6.7e-05,2]
[420014585,1775614474251,156.0,6.7e-05,2]
[420014586,1775614474511,156.0,6.7e-05,2]
[420014587,1775614511105,181.0,0.00011649,2]
[420014588,1775614511381,181.0,0.00011649,2]
[420014589,1775614511689,181.0,0.00011649,2]
[420014590,1775614514662,164.0,0.00011649,2]
[420014591,1775614529313,564.66,0.00011387,2]
[420014592,1775614566854,154.0,0.00011649,2]
[420014593,1775614567195,154.0,0.00011649,2]
[420014594,1775614567436,154.0,0.00011649,2]
[420014595,1775614579899,376.74,0.00010424,2]
[420014596,1775614580594,400.0,0.00010427,2]
[420014597,1775614581296,259.3,0.00010427,2]
[420014598,1775614582657,400.0,0.0001043,2]
[420014599,1775614582775,400.0,0.0001043,2]
[420014600,1775614625656,154.0,0.00011649,2]
[420014601,1775614625910,154.0,0.00011649,2]
[420014602,1775614679751,1542.28,0.00011107,2]
[420014603,1775614745560,179.53,8.871e-05,2]
[420014604,1775614745769,179.53,0.00011088,2]
[420014605,1775614762143,173.09216701,0.00011648,2]
[420014608,1775614808469,1600.0,0.00011009,2]
[420014609,1775614863249,1350.0,0.00011,10]
[420014610,1775614881023,371.85,0.00011479,2]
[420014611,1775614881077,400.0,0.00011484,2]
[420014612,1775614881306,250.74,0.00011484,2]
[420014613,1775614882052,400.0,0.00011488,2]
[420014614,1775614882740,400.0,0.00011488,2]
[420014615,1775615015471,1924.47,0.00011043,2]
[420014616,1775615049309,500.0,0.00011549,2]
[420014617,1775615059812,181.00285336,0.000116,2]
[420014618,1775615151626,840.372,0.000137,120]
[420014619,1775615160217,163.56,0.000161,120]
[420014620,1775615192483,500.0,0.000115,2]
[420014622,1775615236877,200.0,0.00011649,2]
[420014623,1775615375831,150.0,0.00016,120]
[420014624,1775615391231,500.0,0.00011549,2]
[420014637,1775615431950,-154.0,0.00011649,2]
[420014638,1775615431960,-154.0,0.00011649,2]
[420014639,1775615431970,-164.0,0.00011649,2]
[420014640,1775615431980,-600.0,0.00011649,2]
[420014641,1775615431990,-196.89618931,0.00011649,2]
[420014642,1775615432001,-250.0,0.0001165,2]
[420014643,1775615432011,-5000.0,0.0001165,2]
[420014644,1775615432026,-1200.0,0.0001167,2]
[420014645,1775615432039,-530.09402891,0.00011671,2]
[420014646,1775615432048,-300.0,0.00011691,2]
[420014647,1775615432058,-300.0,0.00011691,2]
[420014648,1775615432068,-1200.0,0.00011692,2]
[420014649,1775615432079,-1000.0,0.000117,4]
[420014650,1775615432089,-217.36,0.00011765,2]
[420014651,1775615432099,-380.38,0.00011768,2]
[420014652,1775615432110,-400.0,0.00011772,2]
[420014653,1775615432120,-6586.93748146,0.00011773,2]
[420014654,1775615432130,-2100.0,0.000118,4]
[420014655,1775615432140,-150.0,0.00011811,2]
[420014656,1775615432150,-78805.31420206,0.00011812,2]
[420014657,1775615432160,-644.42250504,0.0001182,2]
[420014658,1775615432176,-49556.17461623,0.00011822,2]
[420014659,1775615432190,-24718.81851512,0.00011822,2]
[420014660,1775615432220,-9451.9593897,0.00011822,2]
[420014695,1775615437975,-418.66220179,0.00011812,2]
[420014697,1775615437986,-1043.73141002,0.00011822,2]
[420014720,1775615440631,-1271.86348119,0.00011822,2]
[420014721,1775615440644,-1413957.45258774,0.00011822,2]
[420014722,1775615440655,-568669.5019,0.00011822,2]
[420014723,1775615440665,-501.51019132,0.00011873,2]
[420014724,1775615440884,-500.53661767,0.00011873,2]
[420014725,1775615440895,-500.0,0.00011873,2]
[420014726,1775615440905,-500.0,0.00011873,2]
[420014727,1775615440915,-12703.13,0.000119,2]
[420014728,1775615440925,-3100.0,0.000119,4]
[420014729,1775615440935,-1002.13512283,0.00011921,2]
[420014730,1775615440946,-310.8644,0.00011921,2]
[420014731,1775615440956,-2500.0,0.00011922,2]
[420014732,1775615440967,-234.257,0.00011922,2]
[420014733,1775615440977,-4152.212,0.00011922,2]
[420014734,1775615440988,-11881.85704529,0.00011942,2]
[420014735,1775615440999,-1011.98167319,0.00011959,2]
[420014736,1775615441010,-150.0,0.00012,2]
[420014737,1775615441021,-500.0,0.00012021,2]
[420014738,1775615441032,-331.93133451,0.00012021,2]
[420014739,1775615441042,-195.61868452,0.00012021,2]
[420014740,1775615441052,-500.0,0.00012021,2]
[420014741,1775615441062,-500.0,0.00012021,2]
[420014742,1775615441072,-451.06645044,0.00012021,2]
[420014743,1775615441082,-500.0,0.00012021,2]
[420014744,1775615441092,-607.25405129,0.00012021,2]
[420014745,1775615441102,-500.0,0.00012021,2]
[420014746,1775615441113,-500.0,0.00012021,2]
[420014747,1775615441123,-500.0,0.00012021,2]
[420014748,1775615441134,-500.0,0.00012021,2]
[420014749,1775615441145,-500.0,0.00012021,2]
[420014750,1775615441155,-500.0,0.00012021,2]
[420014751,1775615441165,-500.0,0.00012021,2]
[420014752,1775615441175,-500.0,0.00012021,2]
[420014753,1775615441186,-500.0,0.00012021,2]
[420014754,1775615441196,-500.0,0.00012021,2]
[420014755,1775615441206,-500.0,0.00012021,2]
[420014756,1775615441216,-500.0,0.00012021,2]
[420014757,1775615441226,-500.0,0.00012021,2]
[420014758,1775615441236,-500.0,0.00012021,2]
[420014759,1775615441246,-500.0,0.00012021,2]
[420014760,1775615441257,-500.0,0.00012021,2]
[420014761,1775615441267,-500.0,0.00012021,2]
[420014762,1775615441277,-500.0,0.00012021,2]
[420014763,1775615441288,-306.83652564,0.00012021,2]
[420014764,1775615441299,-1054.68099591,0.00012021,3]
[420014765,1775615441309,-1054.68099591,0.00012021,3]
[420014766,1775615441319,-792.92,0.00012021,2]
[420014767,1775615441330,-256.32975837,0.00012028,2]
[420014768,1775615441341,-834.24744675,0.00012042,2]
[420014769,1775615441351,-1000.0,0.00012059,2]
[420014770,1775615441361,-4706.7984,0.00012073,2]
[420014771,1775615441370,-1873.0,0.00012154,2]
[420014772,1775615441380,-150.39907194,0.00012159,2]
[420014773,1775615441390,-404.0,0.00012162,2]
[420014774,1775615441401,-322.0,0.00012179,2]
[420014775,1775615441411,-1878.0,0.00012187,2]
[420014776,1775615441420,-235.0,0.00012233,2]
[420014777,1775615441430,-311.0,0.00012258,2]
[420014779,1775615441441,-500.0,0.00012295,2]
[420014781,1775615441451,-792.92,0.00012295,2]
[420014783,1775615441461,-883.0,0.00012303,2]
[420014785,1775615441470,-600.0,0.00012327,2]
[420014787,1775615441480,-11881.85704527,0.00012348,2]
[420014788,1775615441490,-928.0,0.00012352,2]
[420014789,1775615441500,-1600.0,0.00012385,2]
[420014790,1775615441510,-154.0,0.00012386,3]
[420014791,1775615441520,-1000.0,0.00012421,2]
[420014792,1775615441531,-1000.0,0.00012421,2]
[420014793,1775615441541,-500.0,0.00012569,2]
[420014794,1775615441551,-792.92,0.00012569,2]
[420014795,1775615441561,-421.73,0.00012674,2]
[420014796,1775615441571,-11881.85704527,0.00012755,2]
[420014797,1775615441581,-250.0,0.00012814,2]
[420014798,1775615441591,-5000.0,0.00012814,2]
[420014799,1775615441600,-250.0,0.00012814,2]
[420014800,1775615441610,-193.41865489,0.00012814,2]
[420014801,1775615441620,-300.60862761,0.00012814,2]
[420014802,1775615441630,-195.0,0.00012814,2]
[420014803,1775615441639,-606.11742291,0.00012814,2]
[420014804,1775615441649,-195.0,0.00012814,2]
[420014805,1775615441659,-195.0,0.00012814,2]
[420014806,1775615441668,-2247.8331258,0.00012814,2]
[420014807,1775615441679,-600.0,0.00012814,2]
[420014808,1775615441690,-1680.0,0.00012838,2]
[420014809,1775615441700,-420.0,0.00012838,2]
[420014810,1775615441710,-481.0,0.00012839,2]
[420014811,1775615441720,-503.45185304,0.00012843,2]
[420014812,1775615441730,-200.0,0.00012843,2]
[420014813,1775615441740,-792.92,0.00012843,2]
[420014814,1775615442133,-229.31,0.00012847,2]
[420014815,1775615442142,-255.0,0.00012886,2]
[420014816,1775615442152,-200.0,0.00012893,2]
[420014817,1775615442162,-200.0,0.00012893,2]
[420014818,1775615442172,-999.99,0.00012893,2]
[420014819,1775615442183,-14148.83,0.00012893,2]
[420014820,1775615442193,-9999.99,0.00012893,2]
[420014821,1775615442203,-299.99,0.00012893,2]
[420014822,1775615442212,-499.99,0.00012893,2]
[420014823,1775615442223,-150.99,0.00012893,2]
[420014824,1775615442234,-9999.99,0.00012893,2]
[420014825,1775615442244,-150.99,0.00012893,2]
[420014826,1775615442253,-500.0,0.00012906,2]
[420014827,1775615442263,-500.0,0.00012954,2]
[420014828,1775615442272,-500.0,0.00012954,2]
[420014829,1775615442281,-504.16954086,0.00012954,2]
[420014830,1775615442291,-455.42271784,0.00012954,2]
[420014831,1775615442301,-500.0,0.00012954,2]
[420014832,1775615442310,-500.0,0.00012954,2]
[420014833,1775615442320,-1500.0,0.00012968,2]
[420014834,1775615442329,-537.33935184,0.00012968,2]
[420014835,1775615442339,-250.0,0.00013,2]
[420014836,1775615442349,-500.87166627,0.00013005,2]
[420014837,1775615442359,-500.0,0.00013005,2]
[420014838,1775615442369,-507.0,0.000131,2]
[420014839,1775615442379,-792.92,0.00013117,2]
[420014840,1775615442389,-11881.85704527,0.00013161,2]
[420014841,1775615442399,-500.0,0.00013233,2]
[420014842,1775615442408,-500.0,0.00013288,2]
[420014843,1775615442418,-168.2816,0.000133,2]
[420014844,1775615442428,-179.53,0.00013306,2]
[420014845,1775615442438,-792.95785208,0.00013391,2]
[420014846,1775615442448,-3240.0,0.00013425,2]
[420014847,1775615442459,-251.977004,0.00013426,2]
[420014848,1775615442468,-160.0,0.00013426,2]
[420014849,1775615442478,-1245.997627,0.00013426,2]
[420014850,1775615442488,-2331.995254,0.00013426,2]
[420014851,1775615442498,-160.0,0.00013426,2]
[420014852,1775615442508,-359.93781,0.00013426,2]
[420014853,1775615442518,-559.875621,0.00013426,2]
[420014854,1775615442528,-195.473071,0.00013426,2]
[420014855,1775615442538,-160.0,0.00013426,2]
[420014856,1775615442547,-1244.615696,0.00013426,2]
[420014857,1775615442556,-2329.231392,0.00013426,2]
[420014858,1775615442566,-160.0,0.00013426,2]
[420014859,1775615442575,-394.328086,0.00013426,2]
[420014860,1775615442584,-628.656173,0.00013426,2]
[420014861,1775615442593,-391.89335958,0.00013454,2]
[420014862,1775615442603,-5293.08034556,0.000135,7]
[420014863,1775615442612,-500.0,0.00013502,2]
[420014864,1775615442622,-1000.0,0.00013502,2]
[420014865,1775615442631,-1000.0,0.00013502,2]